bitfinex/quotes_BTCUSD_20240803
["timestamp","ask_amount","ask_price","bid_price","bid_amount"]
[1722716061551,0.1066,60574.0,60560.0,0.103]
[1722716061752,0.1066,60574.0,60570.0,0.330191]
[1722716061958,0.1066,60574.0,60573.0,0.49527]
[1722716062318,0.1061,60580.0,60572.0,0.330185]
[1722716062656,0.49886,60586.0,60578.0,0.08291805]
[1722716062864,0.49886,60586.0,60585.0,0.495171]
[1722716063038,0.49886,60586.0,60585.0,0.01652526]
[1722716063408,0.49886,60586.0,60576.0,0.01652526]
[1722716063557,0.52475055,60586.0,60577.0,0.330157]
[1722716063761,0.52475055,60586.0,60576.0,0.01652526]
[1722716064063,0.16506,60584.0,60577.0,0.165078]
[1722716064263,0.70050144,60586.0,60576.0,0.01652526]
[1722716064468,0.165078,60578.0,60576.0,0.01652526]
[1722716064622,0.08291805,60582.0,60569.0,0.1651]
[1722716064623,0.165084,60575.0,60569.0,0.1651]
[1722716064824,0.353158,60577.0,60569.0,0.1651]
[1722716064825,0.1061,60574.0,60569.0,0.165099]
[1722716065049,0.1061,60574.0,60568.0,0.330207]
[1722716065050,0.1061,60574.0,60570.0,0.165097]
[1722716065252,0.1319952,60574.0,60571.0,0.165094]
[1722716065456,0.1319952,60574.0,60566.0,0.01652526]
[1722716065658,0.1319952,60574.0,60569.0,0.330197]
[1722716065866,0.1319952,60574.0,60571.0,0.165093]
[1722716066073,0.1319952,60574.0,60568.0,0.165102]
[1722716066271,0.1319952,60574.0,60569.0,0.165099]
[1722716066469,0.1319952,60574.0,60571.0,0.002]
[1722716066470,0.165092,60572.0,60571.0,0.002]
[1722716066742,0.1378,60573.0,60571.0,0.002]
[1722716066912,0.30289,60573.0,60571.0,0.002]
[1722716067129,0.1378,60573.0,60571.0,0.002]
[1722716067262,0.30289,60573.0,60571.0,0.002]
[1722716067711,0.30289,60573.0,60558.0,0.33987512]
[1722716067712,0.1378,60558.0,60552.0,0.01652526]
[1722716067884,0.1378,60558.0,60548.0,0.330311]
[1722716067885,0.1061,60553.0,60548.0,0.00157439]
[1722716068103,0.1061,60553.0,60547.0,0.331233]
[1722716068104,0.1061,60553.0,60547.0,0.000913]
[1722716068650,0.1061,60553.0,60547.0,0.166072]
[1722716068651,0.02590244,60552.0,60547.0,0.166072]
[1722716068779,0.271245,60553.0,60548.0,0.165157]
[1722716068780,0.1061,60553.0,60548.0,0.165157]
[1722716068979,0.1061,60553.0,60547.0,0.000913]
[1722716069180,0.1061,60553.0,60548.0,0.165157]
[1722716069378,0.1061,60553.0,60547.0,0.000913]
[1722716069379,0.436391,60553.0,60547.0,0.000913]
[1722716069619,0.023,60552.0,60547.0,0.166073]
[1722716069837,0.165152,60551.0,60547.0,0.000913]
[1722716069992,0.1061,60553.0,60551.0,0.165149]
[1722716070192,0.30355089,60558.0,60557.0,0.330267]
[1722716070193,0.1378,60558.0,60557.0,0.330267]
[1722716070393,0.1061,60559.0,60550.0,0.330302]
[1722716070668,0.1061,60559.0,60547.0,0.130813]
[1722716070669,0.1061,60559.0,60551.0,0.00330261]
[1722716070871,0.1061,60559.0,60551.0,0.33360061]
[1722716071173,0.1061,60559.0,60558.0,0.16513]
[1722716071291,0.1378,60565.0,60564.0,0.330229]
[1722716071496,0.1378,60565.0,60564.0,0.165114]
[1722716071696,0.1061,60569.0,60564.0,0.165114]
[1722716071697,0.1061,60569.0,60567.0,0.165105]
[1722716071954,0.02590015,60565.0,60564.0,0.495343]
[1722716072203,0.02590015,60565.0,60564.0,0.825572]
[1722716072799,0.02590015,60565.0,60564.0,0.495343]
[1722716072998,0.02590015,60565.0,60564.0,0.84209726]
[1722716073385,0.02590015,60565.0,60564.0,0.95089726]
[1722716073584,0.02590015,60565.0,60564.0,1.28112626]
[1722716073919,0.02590015,60565.0,60564.0,0.84209726]
[1722716075007,0.2439,60579.0,60565.0,0.330221]
[1722716075214,0.57472489,60579.0,60574.0,0.165086]
[1722716075382,0.023,60578.0,60574.0,0.165086]
[1722716075599,0.40965089,60579.0,60575.0,0.165083]
[1722716075600,0.2439,60579.0,60575.0,0.165083]
[1722716075784,0.2439,60579.0,60574.0,0.165086]
[1722716075971,0.408973,60579.0,60573.0,0.18161426]
[1722716076170,0.2439,60579.0,60575.0,0.165083]
[1722716076453,0.2439,60579.0,60573.0,0.01652526]
[1722716076454,0.2439,60579.0,60574.0,0.330171]
[1722716076741,0.2439,60579.0,60575.0,0.165084]
[1722716076978,0.16575089,60578.0,60564.0,0.01652526]
[1722716077176,0.16575089,60578.0,60557.0,0.47843669]
[1722716077177,0.165109,60566.0,60560.0,0.165123]
[1722716077416,0.33085989,60566.0,60557.0,0.4684]
[1722716077620,0.330232,60564.0,60557.0,0.4684]
[1722716077797,0.165124,60561.0,60557.0,0.4684]
[1722716078036,0.330245,60561.0,60557.0,0.4684]
[1722716078253,0.330226,60565.0,60557.0,0.4684]
[1722716078501,0.023,60564.0,60558.0,0.330261]
[1722716078715,0.65702105,60569.0,60560.0,0.495375]
[1722716078716,0.02589994,60561.0,60560.0,0.495375]
[1722716079525,0.02589994,60561.0,60560.0,0.165125]
[1722716080302,0.02589994,60561.0,60557.0,0.4684]
[1722716080526,0.19102394,60561.0,60557.0,0.4684]
[1722716080683,0.165128,60559.0,60557.0,0.4684]
[1722716080889,0.19102294,60561.0,60557.0,0.4684]
[1722716081088,0.19102294,60561.0,60557.0,0.5684]
[1722716081089,0.02589994,60561.0,60557.0,0.5684]
[1722716081315,0.165099,60570.0,60564.0,0.165113]
[1722716081514,0.1061,60571.0,60560.0,0.330249]
[1722716081515,0.18875089,60569.0,60560.0,0.330249]
[1722716081715,0.18875089,60569.0,60557.0,0.5684]
[1722716081917,0.165117,60563.0,60557.0,0.5694]
[1722716082140,0.18875089,60569.0,60557.0,0.5694]
[1722716082485,0.165112,60565.0,60560.0,0.165124]
[1722716082777,0.165104,60568.0,60562.0,0.165119]
[1722716082978,0.188106,60567.0,60562.0,0.165119]
[1722716083193,0.165111,60565.0,60560.0,0.166124]
[1722716083368,0.023,60567.0,60560.0,0.001]
[1722716083573,0.023,60567.0,60563.0,0.165115]
[1722716083980,0.023,60567.0,60562.0,0.165118]
[1722716084204,0.165109,60566.0,60561.0,0.165122]
[1722716084537,0.02589947,60566.0,60562.0,0.165119]
[1722716084784,0.02589947,60566.0,60559.0,0.330255]
[1722716084929,0.033,60567.0,60563.0,0.001]
[1722716085124,0.165114,60564.0,60563.0,0.001]
[1722716085529,0.518343,60564.0,60563.0,0.001]
[1722716085779,0.518343,60564.0,60557.0,0.1]
[1722716085780,0.19875089,60564.0,60557.0,0.1]
[1722716085986,0.90857005,60558.0,60557.0,0.1]
[1722716086154,0.368,60563.0,60557.0,0.1]
[1722716086352,0.16575089,60562.0,60557.0,0.1]
[1722716086710,0.08291805,60559.0,60557.0,0.1]
[1722716086891,0.99140289,60558.0,60557.0,0.1]
[1722716087118,0.68414189,60558.0,60557.0,0.1]
[1722716087740,1.05030682,60558.0,60557.0,0.1]
[1722716087874,1.15790682,60558.0,60557.0,0.1]
[1722716088076,1.13200289,60558.0,60557.0,0.1]
[1722716088301,1.12200289,60558.0,60557.0,0.1]
[1722716088666,1.13200289,60558.0,60557.0,0.1]
[1722716088861,1.12200289,60558.0,60557.0,0.1]
[1722716089318,1.13200289,60558.0,60557.0,0.1]
[1722716089467,1.46226389,60558.0,60557.0,0.1]
[1722716090109,1.12200289,60558.0,60557.0,0.1]
[1722716090762,1.12900289,60558.0,60557.0,0.101]
[1722716091377,0.82464606,60558.0,60557.0,0.101]
[1722716092453,1.15490706,60558.0,60557.0,0.101]
[1722716092665,1.12900289,60558.0,60557.0,0.101]
[1722716092868,0.46848089,60558.0,60557.0,0.101]
[1722716093079,0.79874189,60558.0,60557.0,0.101]
[1722716093844,0.46848089,60558.0,60557.0,0.101]
[1722716094054,0.007,60558.0,60557.0,0.101]
[1722716095840,0.03290234,60558.0,60557.0,0.101]
[1722716096260,0.007,60558.0,60557.0,0.101]
[1722716096685,0.007,60558.0,60557.0,0.266133]
[1722716096887,0.007,60558.0,60557.0,0.5964]
[1722716097106,0.007,60558.0,60557.0,0.597313]
[1722716097257,0.007,60558.0,60557.0,0.92758]
[1722716097877,0.007,60558.0,60557.0,0.597313]
[1722716098078,0.007,60558.0,60557.0,0.101913]
[1722716099384,0.03290214,60558.0,60557.0,0.101913]
[1722716100017,0.03290214,60558.0,60557.0,0.267046]
[1722716100624,0.007,60558.0,60557.0,0.597313]
[1722716101209,0.007,60558.0,60557.0,0.101913]
[1722716101441,1.27640289,60558.0,60557.0,0.101913]
[1722716101663,1.69349619,60558.0,60557.0,0.101913]
[1722716101871,1.89234989,60558.0,60557.0,0.101913]
[1722716102022,1.91702995,60558.0,60557.0,0.101913]
[1722716102221,1.79349619,60558.0,60557.0,0.101913]
[1722716102441,2.20667524,60558.0,60557.0,0.101913]
[1722716102625,2.19967524,60558.0,60557.0,0.100913]
[1722716102871,1.42623519,60558.0,60557.0,0.100913]
[1722716103005,1.87534187,60558.0,60557.0,0.101913]
[1722716103207,2.20967524,60558.0,60557.0,0.101913]
[1722716103546,2.35793356,60558.0,60557.0,0.101913]
[1722716103793,2.35793427,60558.0,60557.0,0.101913]
[1722716103996,2.3738417,60558.0,60557.0,0.100913]
[1722716104203,2.3738417,60558.0,60557.0,0.101913]
[1722716104204,2.24938676,60558.0,60557.0,0.101913]
[1722716104408,2.24982488,60558.0,60557.0,0.06161899]
[1722716104610,2.42432488,60558.0,60557.0,0.0489701]
[1722716104829,1.718322,60548.0,60547.0,0.000913]
[1722716105051,2.58709563,60548.0,60547.0,0.000913]
[1722716105323,2.20354999,60548.0,60547.0,0.000913]
[1722716106291,2.18354999,60548.0,60547.0,0.000913]
[1722716106491,1.79260578,60548.0,60547.0,0.000913]
[1722716106716,1.08260199,60548.0,60547.0,0.000913]
[1722716106912,1.01532489,60548.0,60547.0,0.000913]
[1722716107112,1.68995689,60548.0,60547.0,0.000913]
[1722716107320,1.81995689,60548.0,60547.0,0.000913]
[1722716107566,2.21663391,60548.0,60547.0,0.000913]
[1722716107759,2.20264115,60548.0,60547.0,0.000913]
[1722716108385,1.59605507,60548.0,60547.0,0.000913]
[1722716108496,0.48621915,60548.0,60547.0,0.000913]
[1722716108698,0.09881354,60551.0,60547.0,0.000913]
[1722716108699,0.16515,60551.0,60547.0,0.000913]
[1722716108965,0.165152,60551.0,60547.0,0.000913]
[1722716109212,0.00987744,60556.0,60547.0,0.000913]
[1722716109213,0.33031,60549.0,60547.0,0.000913]
[1722716109430,0.012,60548.0,60547.0,0.000913]
[1722716109807,0.330281,60555.0,60548.0,0.165158]
[1722716110077,0.165148,60552.0,60547.0,0.166072]
[1722716110275,0.014,60551.0,60548.0,0.165157]
[1722716110553,0.014,60551.0,60547.0,0.000913]
[1722716110708,0.165157,60549.0,60547.0,0.000913]
[1722716110913,0.176158,60548.0,60547.0,0.000913]
[1722716111113,0.176158,60548.0,60547.0,0.166073]
[1722716111114,0.011,60548.0,60547.0,0.166073]
[1722716111307,0.16575089,60554.0,60547.0,0.166073]
[1722716111308,0.165145,60553.0,60547.0,0.166073]
[1722716111507,0.165151,60551.0,60547.0,0.000913]
[1722716111733,0.014,60551.0,60547.0,0.000913]
[1722716111935,0.179151,60551.0,60547.0,0.000913]
[1722716112109,0.179151,60551.0,60550.0,0.275452]
[1722716112110,0.014,60551.0,60550.0,0.275452]
[1722716112332,0.014,60551.0,60550.0,0.605757]
[1722716112543,0.014,60551.0,60550.0,0.936062]
[1722716112734,0.014,60551.0,60550.0,1.266367]
[1722716112903,0.49886,60557.0,60550.0,0.1103]
[1722716113098,0.49886,60557.0,60555.0,0.165137]
[1722716113294,0.49886,60557.0,60547.0,0.34775926]
[1722716113295,0.165156,60549.0,60547.0,0.000913]
[1722716113502,0.08291805,60549.0,60547.0,0.000913]
[1722716113928,0.24866894,60556.0,60547.0,0.000913]
[1722716113929,0.24866894,60556.0,60548.0,0.165157]
[1722716114130,0.08291805,60549.0,60547.0,0.000913]
[1722716114331,0.330316,60548.0,60547.0,0.000913]
[1722716114533,1.01454089,60548.0,60547.0,0.000913]
[1722716114942,1.34485689,60548.0,60547.0,0.000913]
[1722716115186,1.67595689,60548.0,60547.0,0.000913]
[1722716115386,1.39502203,60548.0,60547.0,0.000913]
[1722716115751,1.34564089,60548.0,60547.0,0.000913]
[1722716116069,0.47981866,60548.0,60547.0,0.000913]
[1722716116269,0.04890977,60548.0,60547.0,0.000913]
[1722716116503,0.54438377,60548.0,60547.0,0.000913]
[1722716117021,0.05290977,60548.0,60547.0,0.000913]
[1722716117226,0.027,60548.0,60547.0,0.000913]
[1722716117446,0.023,60548.0,60547.0,0.000913]
[1722716117823,0.031,60548.0,60547.0,0.000913]
[1722716118288,0.49886,60557.0,60547.0,0.111213]
[1722716118489,0.49886,60557.0,60554.0,0.16514]
[1722716118692,0.49886,60557.0,60553.0,0.01652526]
[1722716118892,0.49886,60557.0,60556.0,0.495408]
[1722716119721,0.49886,60557.0,60555.0,0.1385]
[1722716120248,0.50786,60557.0,60553.0,0.01652526]
[1722716120376,0.50786,60557.0,60553.0,0.18166826]
[1722716120578,0.52476439,60557.0,60553.0,0.01652526]
[1722716120856,0.165136,60556.0,60553.0,0.01652526]
[1722716121078,0.165141,60554.0,60553.0,0.01652526]
[1722716121253,0.165139,60555.0,60550.0,0.165152]
[1722716121478,0.82913,60557.0,60549.0,0.468809]
[1722716121479,0.83113,60557.0,60549.0,0.303654]
[1722716121680,0.83113,60557.0,60548.0,0.165158]
[1722716121681,0.60276,60557.0,60548.0,0.165158]
[1722716121868,0.08291805,60552.0,60547.0,0.000913]
[1722716122024,0.495474,60548.0,60547.0,0.000913]
[1722716122371,0.165156,60549.0,60547.0,0.000913]
[1722716122506,0.495474,60548.0,60547.0,0.000913]
[1722716122748,0.99154089,60548.0,60547.0,0.000913]
[1722716122956,0.330301,60551.0,60547.0,0.000913]
[1722716123197,0.165158,60548.0,60547.0,0.000913]
[1722716123398,0.495474,60548.0,60547.0,0.000913]
[1722716123615,0.165155,60549.0,60547.0,0.000913]
[1722716123853,0.330316,60548.0,60547.0,0.000913]
[1722716124037,1.01454089,60548.0,60547.0,0.000913]
[1722716125295,1.34485689,60548.0,60547.0,0.000913]
[1722716125705,1.58225689,60548.0,60547.0,0.000913]
[1722716125904,2.2046286,60548.0,60547.0,0.000913]
[1722716127718,2.68329547,60548.0,60547.0,0.000913]
[1722716127928,2.5349446,60548.0,60547.0,0.000913]
[1722716128184,2.2046286,60548.0,60547.0,0.000913]
[1722716128360,2.2186286,60548.0,60547.0,0.000913]
[1722716128562,2.35659926,60548.0,60547.0,0.000913]
[1722716128768,2.2282502,60548.0,60547.0,0.000913]
[1722716129019,0.165201,60533.0,60527.0,0.165213]
[1722716129182,0.04944928,60538.0,60528.0,0.330424]
[1722716129386,0.33093989,60537.0,60531.0,0.165203]
[1722716129584,0.02591258,60532.0,60531.0,0.165203]
[1722716129786,0.023,60536.0,60528.0,0.165211]
[1722716129997,0.165199,60533.0,60528.0,0.165211]
[1722716130215,0.003,60533.0,60529.0,0.000913]
[1722716130441,0.165202,60532.0,60529.0,0.000913]
[1722716130646,0.495621,60530.0,60529.0,0.000913]
[1722716130814,0.99178589,60530.0,60529.0,0.000913]
[1722716131018,1.34519989,60530.0,60529.0,0.000913]
[1722716131611,1.55528751,60530.0,60529.0,0.000913]
[1722716131811,1.47111695,60530.0,60529.0,0.000913]
[1722716132210,0.330464,60521.0,60515.0,0.49750831]
[1722716132414,0.165227,60523.0,60517.0,0.165241]
[1722716132621,0.165229,60522.0,60517.0,0.165241]
[1722716132987,0.165229,60522.0,60512.0,0.339809]
[1722716132988,0.165253,60513.0,60512.0,0.0093]
[1722716133202,0.165252,60514.0,60512.0,0.0093]
[1722716133346,0.165253,60513.0,60512.0,0.0093]
[1722716133543,0.49576,60513.0,60512.0,0.0093]
[1722716133770,0.51876,60513.0,60512.0,0.0093]
[1722716133931,0.188253,60513.0,60512.0,0.0093]
[1722716134135,0.50591766,60521.0,60512.0,0.0093]
[1722716134374,0.50591766,60521.0,60512.0,0.505068]
[1722716134375,0.02592159,60513.0,60512.0,0.505068]
[1722716136164,0.02592159,60513.0,60512.0,0.94408]
[1722716136361,0.02692159,60513.0,60512.0,0.94408]
[1722716136561,0.02692159,60513.0,60512.0,1.44034289]
[1722716136762,0.02692159,60513.0,60512.0,1.58594289]
[1722716136962,0.02692159,60513.0,60512.0,1.57394289]
[1722716137165,0.02592159,60513.0,60512.0,1.57394289]
[1722716137369,0.02592159,60513.0,60512.0,1.408192]
[1722716137568,0.02692159,60513.0,60512.0,1.07768]
[1722716137768,0.02692159,60513.0,60512.0,0.747168]
[1722716137995,0.02692159,60513.0,60512.0,1.07768]
[1722716138352,0.001,60513.0,60512.0,1.57394289]
[1722716138561,0.001,60513.0,60512.0,1.58594289]
[1722716138764,0.001,60513.0,60512.0,1.57394289]
[1722716139165,0.165208,60530.0,60524.0,0.165223]
[1722716139371,0.16521,60529.0,60524.0,0.01652526]
[1722716139565,0.08291805,60525.0,60524.0,0.01652526]
[1722716139789,0.023,60531.0,60524.0,0.01652526]
[1722716139999,0.18875089,60531.0,60524.0,0.01652526]
[1722716140207,0.33095589,60531.0,60526.0,0.159857]
[1722716140430,0.16522,60525.0,60524.0,0.01652526]
[1722716140637,0.16522,60525.0,60516.0,0.01652526]
[1722716140638,0.165244,60517.0,60516.0,0.01652526]
[1722716140844,0.16525,60515.0,60512.0,0.0093]
[1722716141047,0.165249,60515.0,60512.0,0.0093]
[1722716141243,0.165251,60514.0,60512.0,0.0093]
[1722716141450,0.41340305,60517.0,60512.0,0.0093]
[1722716141677,0.165253,60513.0,60512.0,0.0093]
[1722716141860,1.11941789,60513.0,60512.0,0.0093]
[1722716142060,1.24901789,60513.0,60512.0,0.0093]
[1722716142257,1.57952489,60513.0,60512.0,0.0093]
[1722716142549,1.67952489,60513.0,60512.0,0.0093]
[1722716143167,1.69152489,60513.0,60512.0,0.0093]
[1722716144312,1.70552489,60513.0,60512.0,0.0103]
[1722716145092,2.04603189,60513.0,60512.0,0.0103]
[1722716145757,2.62245876,60513.0,60512.0,0.0103]
[1722716145954,2.62245876,60513.0,60502.0,0.0093]
[1722716145955,1.494867,60503.0,60502.0,0.0093]
[1722716146155,2.41869794,60503.0,60502.0,0.0093]
[1722716146375,2.44869794,60503.0,60502.0,0.0093]
[1722716146725,2.42869794,60503.0,60502.0,0.0093]
[1722716146998,1.80954691,60503.0,60502.0,0.0093]
[1722716147328,0.92029389,60503.0,60502.0,0.0093]
[1722716147568,0.8105224,60503.0,60502.0,0.0093]
[1722716147780,1.1550844,60503.0,60502.0,0.0093]
[1722716147989,0.4939604,60503.0,60502.0,0.0093]
[1722716148714,0.8385224,60503.0,60502.0,0.0093]
[1722716149093,0.05392851,60503.0,60502.0,0.0093]
[1722716149248,0.21920951,60503.0,60502.0,0.0093]
[1722716149449,1.0460844,60503.0,60502.0,0.0093]
[1722716149650,1.4996464,60503.0,60502.0,0.0093]
[1722716149836,1.9234464,60503.0,60502.0,0.0093]
[1722716150038,1.9094464,60503.0,60502.0,0.0093]
[1722716150240,1.6878464,60503.0,60502.0,0.0093]
[1722716150443,1.8095464,60503.0,60502.0,0.0093]
[1722716150648,2.3917084,60503.0,60502.0,0.0093]
[1722716150853,2.4057084,60503.0,60502.0,0.0093]
[1722716151167,2.3917084,60503.0,60502.0,0.0093]
[1722716151376,2.4137084,60503.0,60502.0,0.0093]
[1722716151602,2.3997084,60503.0,60502.0,0.0093]
[1722716151804,2.3917084,60503.0,60502.0,0.0093]
[1722716152121,2.3857084,60503.0,60502.0,0.0093]
[1722716152504,2.0451464,60503.0,60502.0,0.0093]
[1722716152704,1.8145464,60503.0,60502.0,0.0093]
[1722716153089,1.78861789,60503.0,60502.0,0.0093]
[1722716153714,1.77461789,60503.0,60502.0,0.0093]
[1722716153886,1.79358301,60503.0,60502.0,0.0093]
[1722716154099,1.82658301,60503.0,60502.0,0.0093]
[1722716154333,1.83258301,60503.0,60502.0,0.0093]
[1722716154513,2.06818301,60503.0,60502.0,0.0093]
[1722716154714,2.41274501,60503.0,60502.0,0.0093]
[1722716154891,0.165289,60500.0,60499.0,0.0093]
[1722716155097,0.87753594,60500.0,60499.0,0.0093]
[1722716155354,1.53869194,60500.0,60499.0,0.0093]
[1722716155580,1.85926994,60500.0,60499.0,0.0093]
[1722716156172,1.47170442,60500.0,60499.0,0.0093]
[1722716156380,1.45977389,60500.0,60499.0,0.0093]
[1722716157327,1.44577389,60500.0,60499.0,0.0093]
[1722716157532,0.1,60500.0,60499.0,0.174591]
[1722716157744,0.488647,60502.0,60500.0,0.1047]
[1722716159022,0.488647,60502.0,60500.0,0.269988]
[1722716159206,0.501647,60502.0,60500.0,0.269988]
[1722716159383,0.501647,60502.0,60500.0,0.1047]
[1722716159584,0.501647,60502.0,60501.0,0.165286]
[1722716159815,0.527574,60502.0,60501.0,0.165286]
[1722716159966,0.527574,60502.0,60500.0,0.269988]
[1722716160372,0.527574,60502.0,60500.0,0.1047]
[1722716160698,0.521574,60502.0,60501.0,0.495859]
[1722716160884,0.521574,60502.0,60501.0,0.165286]
[1722716161088,0.520574,60502.0,60500.0,0.269989]
[1722716161241,0.514574,60502.0,60501.0,0.165286]
[1722716161443,0.515574,60502.0,60501.0,0.165286]
[1722716161675,0.491647,60502.0,60501.0,0.165286]
[1722716161849,0.491647,60502.0,60499.0,0.0093]
[1722716161850,0.65639789,60502.0,60499.0,0.0093]
[1722716162055,0.90936305,60500.0,60499.0,0.0093]
[1722716162253,1.40569194,60500.0,60499.0,0.0093]
[1722716162453,1.52869194,60500.0,60499.0,0.0093]
[1722716162686,0.78461789,60500.0,60499.0,0.0093]
[1722716163104,0.86753594,60500.0,60499.0,0.0093]
[1722716163397,1.11519589,60500.0,60499.0,0.0093]
[1722716164151,1.44577389,60500.0,60499.0,0.0093]
[1722716164806,1.13719589,60500.0,60499.0,0.0093]
[1722716164932,1.16312362,60500.0,60499.0,0.0093]
[1722716165146,1.49370162,60500.0,60499.0,0.0093]
[1722716165345,1.47970162,60500.0,60499.0,0.0093]
[1722716165761,1.49370162,60500.0,60499.0,0.0093]
[1722716165962,1.45377389,60500.0,60499.0,0.0093]
[1722716166173,1.55069194,60500.0,60499.0,0.0093]
[1722716166708,1.88126994,60500.0,60499.0,0.0093]
[1722716166891,1.46777389,60500.0,60499.0,0.0093]
[1722716167338,1.45977389,60500.0,60499.0,0.0093]
[1722716167548,1.10619589,60500.0,60499.0,0.0093]
[1722716167724,1.11719589,60500.0,60499.0,0.0093]
[1722716169313,1.16612402,60500.0,60499.0,0.0093]
[1722716169598,1.86728518,60500.0,60499.0,0.0093]
[1722716169921,1.87728518,60500.0,60499.0,0.0093]
[1722716170343,1.86728518,60500.0,60499.0,0.0093]
[1722716170541,1.87728518,60500.0,60499.0,0.0093]
[1722716170797,1.53670718,60500.0,60499.0,0.0093]
[1722716171735,1.18312918,60500.0,60499.0,0.0093]
[1722716172092,0.35603989,60500.0,60499.0,0.0093]
[1722716172373,0.025,60500.0,60499.0,0.0093]
[1722716173542,0.014,60500.0,60499.0,0.0093]
[1722716173883,0.011,60500.0,60499.0,0.0093]
[1722716174281,0.014,60500.0,60499.0,0.0093]
[1722716174521,0.65393,60502.0,60499.0,0.0093]
[1722716174684,0.170289,60500.0,60499.0,0.0093]
[1722716174884,0.500867,60500.0,60499.0,0.0093]
[1722716175487,0.99719589,60500.0,60499.0,0.0093]
[1722716175705,1.02019589,60500.0,60499.0,0.0093]
[1722716175910,1.35077389,60500.0,60499.0,0.0093]
[1722716176113,1.45077389,60500.0,60499.0,0.0093]
[1722716176321,1.12019589,60500.0,60499.0,0.0093]
[1722716176731,1.14612509,60500.0,60499.0,0.0093]
[1722716177065,1.12019589,60500.0,60499.0,0.0093]
[1722716177502,1.18588157,60500.0,60499.0,0.0093]
[1722716177678,1.70035957,60500.0,60499.0,0.0093]
[1722716178076,1.70013751,60500.0,60499.0,0.0093]
[1722716178486,1.69513751,60500.0,60499.0,0.0093]
[1722716178888,1.71814514,60500.0,60499.0,0.0093]
[1722716179066,1.70414514,60500.0,60499.0,0.0093]
[1722716179266,0.34022214,60500.0,60499.0,0.0093]
[1722716179431,0.45403989,60500.0,60499.0,0.0093]
[1722716179637,0.78461789,60500.0,60499.0,0.0093]
[1722716180045,1.11519589,60500.0,60499.0,0.0093]
[1722716180245,1.13212471,60500.0,60499.0,0.0093]
[1722716180692,1.16612471,60500.0,60499.0,0.0093]
[1722716181024,1.12919589,60500.0,60499.0,0.0093]
[1722716181346,0.79361789,60500.0,60499.0,0.0093]
[1722716181746,1.13819589,60500.0,60499.0,0.0093]
[1722716182394,1.12919589,60500.0,60499.0,0.0093]
[1722716182596,1.11519589,60500.0,60499.0,0.0093]
[1722716182947,0.79561789,60500.0,60499.0,0.0093]
[1722716183150,1.45677389,60500.0,60499.0,0.0093]
[1722716183300,1.58759377,60500.0,60499.0,0.0093]
[1722716183866,1.63706419,60500.0,60499.0,0.0093]
[1722716184062,1.66899392,60500.0,60499.0,0.0093]
[1722716184275,1.66857975,60500.0,60499.0,0.0093]
[1722716184481,1.63665002,60500.0,60499.0,0.0093]
[1722716184686,1.66138524,60500.0,60499.0,0.0093]
[1722716184887,1.66141464,60500.0,60499.0,0.0093]
[1722716185096,2.1617296,60500.0,60499.0,0.0093]
[1722716185350,1.257079,60497.0,60496.0,0.0093]
[1722716185597,1.9421296,60497.0,60496.0,0.0093]
[1722716186750,1.9561296,60497.0,60496.0,0.0093]
[1722716187165,1.9820619,60497.0,60496.0,0.0093]
[1722716187373,1.9661296,60497.0,60496.0,0.0093]
[1722716187745,1.9801296,60497.0,60496.0,0.0093]
[1722716187955,2.4077236,60497.0,60496.0,0.0093]
[1722716188162,2.07612389,60497.0,60496.0,0.0093]
[1722716188374,2.11106889,60497.0,60496.0,0.0093]
[1722716188576,2.09706888,60497.0,60496.0,0.0093]
[1722716188701,2.08306888,60497.0,60496.0,0.0093]
[1722716188888,1.76647488,60497.0,60496.0,0.0093]
[1722716189087,1.75247488,60497.0,60496.0,0.0093]
[1722716189308,1.8364604,60497.0,60496.0,0.0093]
[1722716189551,1.8504604,60497.0,60496.0,0.0093]
[1722716189788,2.26996888,60497.0,60496.0,0.0093]
[1722716190028,2.28396888,60497.0,60496.0,0.0093]
[1722716190255,2.64049607,60497.0,60496.0,0.0093]
[1722716190492,2.70519607,60497.0,60496.0,0.0093]
[1722716190763,2.66526288,60497.0,60496.0,0.0093]
[1722716190921,2.67926288,60497.0,60496.0,0.0093]
[1722716191450,2.66526288,60497.0,60496.0,0.0093]
[1722716191815,1.48792,60487.0,60486.0,0.0093]
[1722716192060,2.25409238,60487.0,60486.0,0.0093]
[1722716192264,2.35409238,60487.0,60486.0,0.0093]
[1722716192464,2.20543165,60487.0,60486.0,0.0093]
[1722716193122,1.58848265,60487.0,60486.0,0.0093]
[1722716193335,1.19483365,60487.0,60486.0,0.0093]
[1722716193507,1.20883365,60487.0,60486.0,0.0093]
[1722716193707,0.87818465,60487.0,60486.0,0.0093]
[1722716194131,1.33382188,60487.0,60486.0,0.0093]
[1722716194430,0.97723794,60487.0,60486.0,0.0093]
[1722716194637,0.81272389,60487.0,60486.0,0.0093]
[1722716194838,1.21765639,60487.0,60486.0,0.0093]
[1722716195161,1.14337289,60487.0,60486.0,0.0093]
[1722716195365,1.21765639,60487.0,60486.0,0.0093]
[1722716195591,0.88700739,60487.0,60486.0,0.0093]
[1722716195793,0.81272389,60487.0,60486.0,0.0093]
[1722716196015,0.86224336,60487.0,60486.0,0.0093]
[1722716196209,0.81272389,60487.0,60486.0,0.0093]
[1722716196472,0.86224336,60487.0,60486.0,0.0093]
[1722716196761,1.19289236,60487.0,60486.0,0.0093]
[1722716196960,1.14337289,60487.0,60486.0,0.0093]
[1722716197674,1.16930732,60487.0,60486.0,0.0093]
[1722716197875,1.14337289,60487.0,60486.0,0.0093]
[1722716198349,1.24240631,60487.0,60486.0,0.0093]
[1722716198524,1.24241094,60487.0,60486.0,0.0093]
[1722716199311,0.31578894,60487.0,60486.0,0.0093]
[1722716199522,0.028,60487.0,60486.0,0.570982]
[1722716199921,0.028,60487.0,60486.0,0.240327]
[1722716200147,0.028,60487.0,60486.0,0.570982]